bitfinex/quotes_SOLUSD_20241007
["timestamp","ask_amount","ask_price","bid_price","bid_amount"]
[1728328010437,0.8236266,146.9,146.89,28.16891005]
[1728328011630,0.8236266,146.9,146.89,28.16900888]
[1728328012316,0.8236266,146.9,146.89,26.8078]
[1728328012715,0.8236266,146.9,146.89,28.16900948]
[1728328013016,0.8236266,146.9,146.89,26.8078]
[1728328013734,0.8236266,146.9,146.89,28.16900802]
[1728328016340,0.8236266,146.9,146.89,6.8078]
[1728328016726,0.8236266,146.9,146.89,8.16903634]
[1728328017442,0.8236266,146.9,146.89,28.16903634]
[1728328018726,2.66e-05,146.9,146.89,50.584684]
[1728328019745,2.66e-05,146.9,146.89,26.8078]
[1728328020742,2.66e-05,146.9,146.88,17.0201]
[1728328020921,2.66e-05,146.9,146.88,23.8283]
[1728328021121,2.66e-05,146.9,146.88,17.0201]
[1728328021321,2.66e-05,146.9,146.88,6.808]
[1728328021927,2.66e-05,146.9,146.89,6.8078]
[1728328022341,2.66e-05,146.9,146.89,26.8078]
[1728328022724,2.66e-05,146.9,146.89,50.584684]
[1728328022932,2.66e-05,146.9,146.89,28.16862738]
[1728328023153,2.66e-05,146.9,146.89,26.8078]
[1728328023335,2.66e-05,146.9,146.89,28.16876964]
[1728328023544,2.66e-05,146.9,146.89,26.8078]
[1728328024354,2.66e-05,146.9,146.89,28.1687752]
[1728328024733,2.66e-05,146.9,146.89,26.8078]
[1728328025227,2.66e-05,146.9,146.89,28.16883992]
[1728328025628,2.66e-05,146.9,146.89,26.8078]
[1728328026052,2.66e-05,146.9,146.89,6.8078]
[1728328027031,2.66e-05,146.9,146.87,17.0213]
[1728328027230,6.5226266,146.9,146.87,17.0213]
[1728328027427,6.5226266,146.9,146.88,6.8082]
[1728328027689,6.5226266,146.9,146.87,23.8299]
[1728328027964,15.1391,146.89,146.88,6.8082]
[1728328029543,15.1391,146.89,146.87,8.17014006]
[1728328029855,15.1391,146.89,146.88,6.8082]
[1728328030236,21.947,146.89,146.85,6.8093]
[1728328030437,15.1391,146.89,146.83,34.0507]
[1728328030657,15.1391,146.89,146.87,6.8087]
[1728328031738,15.1391,146.89,146.86,6.8088]
[1728328032458,15.1391,146.89,146.85,23.8331]
[1728328032637,23.776884,146.88,146.86,6.8091]
[1728328032964,15.1391,146.89,146.86,6.8091]
[1728328033537,30.585284,146.88,146.83,20.0]
[1728328033736,23.776884,146.88,146.83,20.0]
[1728328033954,23.776884,146.88,146.85,6.8092]
[1728328034150,23.776884,146.88,146.86,23.8313]
[1728328034553,15.1391,146.89,146.87,6.8087]
[1728328034742,15.1391,146.89,146.88,6.8082]
[1728328036837,2.66e-05,146.9,146.89,6.8078]
[1728328037035,2.66e-05,146.9,146.89,8.16913276]
[1728328037564,2.66e-05,146.9,146.89,26.8078]
[1728328038554,2.66e-05,146.9,146.89,28.16898753]
[1728328038770,2.66e-05,146.9,146.89,26.8078]
[1728328039561,2.66e-05,146.9,146.89,28.16889152]
[1728328040148,2.66e-05,146.9,146.89,28.16889276]
[1728328040347,2.66e-05,146.9,146.89,26.8078]
[1728328041264,2.66e-05,146.9,146.89,28.16911639]
[1728328041564,2.66e-05,146.9,146.89,26.8078]
[1728328041767,2.66e-05,146.9,146.89,6.8078]
[1728328042745,6.8076266,146.9,146.86,6.8087]
[1728328043044,2.66e-05,146.9,146.85,1.36165627]
[1728328043261,2.66e-05,146.9,146.88,6.8079]
[1728328043659,2.66e-05,146.9,146.87,17.0212]
[1728328043859,2.66e-05,146.9,146.89,6.8078]
[1728328047457,2.66e-05,146.9,146.87,17.0212]
[1728328047971,2.66e-05,146.9,146.89,6.8078]
[1728328053959,2.66e-05,146.9,146.87,23.8297]
[1728328054961,2.66e-05,146.9,146.83,34.0507]
[1728328055368,2.66e-05,146.9,146.89,6.8078]
[1728328055681,2.66e-05,146.9,146.88,23.8285]
[1728328056458,2.66e-05,146.9,146.88,17.0203]
[1728328056667,2.66e-05,146.9,146.89,6.8078]
[1728328056860,2.66e-05,146.9,146.88,17.0203]
[1728328057557,23.7769106,146.9,146.87,6.8087]
[1728328057777,30.5843106,146.9,146.86,6.8089]
[1728328058268,23.7769106,146.9,146.86,1.3617884]
[1728328058575,2.66e-05,146.9,146.88,6.8082]
[1728328058759,2.66e-05,146.9,146.89,6.8078]
[1728328059953,2.66e-05,146.9,146.87,17.0217]
[1728328060159,2.66e-05,146.9,146.88,6.8081]
[1728328060380,2.66e-05,146.9,146.87,23.8301]
[1728328060771,2.66e-05,146.9,146.89,6.8078]
[1728328061155,2.66e-05,146.9,146.88,6.808]
[1728328061361,2.66e-05,146.9,146.87,18.3832926]
[1728328061563,2.66e-05,146.9,146.89,6.8078]
[1728328061761,2.66e-05,146.9,146.87,23.8302]
[1728328061956,2.66e-05,146.9,146.87,17.0217]
[1728328062166,2.66e-05,146.9,146.87,23.83]
[1728328062383,2.66e-05,146.9,146.89,6.8078]
[1728328062564,2.66e-05,146.9,146.87,23.8301]
[1728328062887,2.66e-05,146.9,146.89,6.8078]
[1728328063565,2.66e-05,146.9,146.88,6.808]
[1728328063776,2.66e-05,146.9,146.87,17.0217]
[1728328063980,2.66e-05,146.9,146.88,6.8079]
[1728328064858,2.66e-05,146.9,146.89,6.8078]
[1728328066376,2.66e-05,146.9,146.87,17.0217]
[1728328066573,2.66e-05,146.9,146.87,23.8301]
[1728328066961,2.66e-05,146.9,146.84,17.0243]
[1728328067284,6.8075266,146.9,146.86,6.8088]
[1728328068476,6.8075266,146.9,146.86,23.8317]
[1728328068682,2.66e-05,146.9,146.88,6.8079]
[1728328071087,2.66e-05,146.9,146.87,6.8086]
[1728328071377,6.8076266,146.9,146.86,23.832]
[1728328071567,6.8076266,146.9,146.89,6.8078]
[1728328071568,2.66e-05,146.9,146.89,6.8078]
[1728328071768,2.66e-05,146.9,146.89,8.16917278]
[1728328073080,2.66e-05,146.9,146.89,6.8078]
[1728328078374,2.66e-05,146.9,146.89,8.16923844]
[1728328078779,2.66e-05,146.9,146.89,28.16923844]
[1728328080168,2.66e-05,146.9,146.89,26.8078]
[1728328080362,2.66e-05,146.9,146.89,6.8078]
[1728328080568,2.66e-05,146.9,146.89,28.16919067]
[1728328080785,2.66e-05,146.9,146.89,47.65574737]
[1728328082368,2.66e-05,146.9,146.89,46.2943567]
[1728328082675,2.66e-05,146.9,146.89,47.6554632]
[1728328082874,2.66e-05,146.9,146.89,26.8078]
[1728328084179,2.66e-05,146.9,146.89,28.16918054]
[1728328085388,2.66e-05,146.9,146.89,28.16883826]
[1728328085575,2.66e-05,146.9,146.89,28.16901532]
[1728328085777,2.66e-05,146.9,146.89,26.8078]
[1728328087092,2.66e-05,146.9,146.89,28.16894412]
[1728328087290,2.66e-05,146.9,146.89,26.8078]
[1728328087671,2.66e-05,146.9,146.89,28.16900735]
[1728328087873,2.66e-05,146.9,146.89,26.8078]
[1728328088072,2.66e-05,146.9,146.89,6.8078]
[1728328088809,2.66e-05,146.9,146.89,8.16929025]
[1728328089385,2.66e-05,146.9,146.89,28.16929025]
[1728328090079,2.66e-05,146.9,146.89,26.8078]
[1728328090999,2.66e-05,146.9,146.89,6.8078]
[1728328091177,2.66e-05,146.9,146.88,17.02]
[1728328091376,2.66e-05,146.9,146.89,6.8078]
[1728328101407,2.66e-05,146.9,146.88,17.02]
[1728328101698,2.66e-05,146.9,146.88,23.8281]
[1728328104301,2.66e-05,146.9,146.89,8.16939566]
[1728328104508,2.66e-05,146.9,146.89,6.8078]
[1728328106376,2.66e-05,146.9,146.88,17.02]
[1728328106589,2.66e-05,146.9,146.88,23.8281]
[1728328107106,2.66e-05,146.9,146.88,17.02]
[1728328107411,2.66e-05,146.9,146.88,23.8282]
[1728328107786,2.66e-05,146.9,146.89,6.8078]
[1728328108393,2.66e-05,146.9,146.89,28.16926305]
[1728328109394,6.1891,146.98,146.9,43.776884]
[1728328109591,6.1891,146.98,146.97,6.8041]
[1728328110314,6.1891,146.98,146.96,17.0108]
[1728328110315,6.1891,146.98,146.96,23.8152]
[1728328110692,6.1891,146.98,146.94,6.8051]
[1728328111695,12.993,146.98,146.93,23.8199]
[1728328111899,6.8041,146.97,146.93,23.8199]
[1728328112406,23.776884,146.96,146.93,23.8199]
[1728328113921,23.776884,146.97,146.93,23.8199]
[1728328115392,30.581084,146.97,146.93,23.8199]
[1728328116310,23.776884,146.95,146.92,6.8063]
[1728328116694,23.776884,146.95,146.9,17.0175]
[1728328117018,30.581884,146.95,146.91,6.8065]
[1728328117216,23.776884,146.95,146.91,6.8065]
[1728328117924,23.776884,146.95,146.9,17.0175]
[1728328118095,23.776884,146.95,146.92,6.8063]
[1728328118291,23.776884,146.95,146.9,17.0175]
[1728328118497,23.776884,146.93,146.9,17.0175]
[1728328118716,23.776884,146.93,146.9,23.8245]
[1728328120423,15.6432,146.92,146.9,23.8245]
[1728328120915,23.776884,146.91,146.9,17.0175]
[1728328121416,23.776884,146.91,146.9,23.8248]
[1728328121619,23.776884,146.91,146.88,6.8079]
[1728328122320,23.776884,146.91,146.87,23.8291]
[1728328122321,36.991284,146.91,146.87,23.8291]
[1728328123012,36.991284,146.91,146.88,6.8081]
[1728328123013,30.184284,146.91,146.88,6.8081]
[1728328124427,36.991284,146.91,146.87,23.8294]
[1728328126796,23.776884,146.89,146.87,23.8295]
[1728328127024,36.991184,146.91,146.87,23.8295]
[1728328127318,30.184284,146.91,146.89,6.8075]
[1728328127622,30.184284,146.91,146.87,17.0208]
[1728328127821,30.184284,146.91,146.88,6.8079]
[1728328128916,36.991184,146.91,146.87,23.8292]
[1728328129316,30.184284,146.91,146.88,6.8082]
[1728328132028,23.776884,146.89,146.86,6.8089]
[1728328132202,23.776884,146.89,146.84,20.0]
[1728328132402,23.776884,146.9,146.87,6.8087]
[1728328132808,30.584184,146.9,146.86,23.8318]
[1728328133006,30.584184,146.9,146.86,17.0228]
[1728328133208,23.776884,146.9,146.87,6.8087]
[1728328134433,30.584184,146.9,146.87,6.8087]
[1728328136031,23.776884,146.9,146.87,6.8087]
[1728328136333,23.776884,146.9,146.86,17.0228]
[1728328136334,23.776884,146.9,146.86,12.47760556]
[1728328136637,23.776884,146.9,146.88,17.0205]
[1728328136823,23.776884,146.9,146.88,23.8285]
[1728328137409,23.776884,146.9,146.84,20.0]
[1728328137410,23.776884,146.9,146.84,32.47760556]
[1728328137617,30.584184,146.9,146.86,6.809]
[1728328137813,6.8078,146.89,146.85,23.8325]
[1728328138017,23.776884,146.86,146.83,6.8104]
[1728328138237,30.586184,146.86,146.82,23.8379]
[1728328138442,17.0188,146.9,146.82,23.8379]
[1728328138443,23.776884,146.84,146.82,17.0269]
[1728328139033,23.776884,146.84,146.82,23.8378]
[1728328140138,23.776884,146.84,146.82,17.0269]
[1728328140340,23.776884,146.84,146.8,6.8118]
[1728328140522,23.776884,146.84,146.79,17.0303]
[1728328140937,23.776884,146.84,146.81,6.8114]
[1728328141322,23.776884,146.84,146.8,1.36224487]
[1728328141518,23.776884,146.84,146.82,6.811]
[1728328141731,23.776884,146.84,146.81,17.0284]
[1728328142037,16.6175,146.85,146.83,6.8105]
[1728328142445,6.4074,146.91,146.83,13.83964764]
[1728328142620,16.2883,146.9,146.88,6.8079]
[1728328142937,16.2883,146.9,146.89,6.8078]
[1728328143438,22.8455,146.97,146.91,23.8236]
[1728328144140,6.8053,146.95,146.91,17.0172]
[1728328144343,6.8053,146.95,146.91,23.824]
[1728328144645,22.8455,146.97,146.89,1.36137175]
[1728328144944,22.8455,146.97,146.94,6.8054]
[1728328145823,22.8455,146.97,146.93,23.8201]
[1728328146033,22.8455,146.97,146.83,19.48546561]
[1728328146233,6.8062,146.93,146.87,17.0211]
[1728328146420,6.8065,146.92,146.88,6.8081]
[1728328146723,22.8455,146.97,146.87,23.8297]
[1728328146724,6.807,146.91,146.87,23.8297]
[1728328146917,16.3771,146.95,146.84,17.0246]
[1728328147117,34.116,146.99,146.84,17.0246]
[1728328147118,23.776884,146.87,146.84,17.0246]
[1728328147339,23.776884,146.87,146.82,6.8109]
[1728328147543,23.776884,146.87,146.82,1.3621042]
[1728328147784,23.776884,146.91,146.83,19.48546561]
[1728328148043,23.776884,146.88,146.84,23.8345]
[1728328148243,6.8086,146.88,146.84,17.0246]
[1728328148741,23.776884,146.87,146.84,17.0246]
[1728328148950,23.776884,146.88,146.84,23.8346]
[1728328149520,30.585184,146.88,146.84,23.8346]
[1728328150018,30.585184,146.88,146.84,17.0246]
[1728328150230,30.585184,146.88,146.84,23.8347]
[1728328151658,16.378,146.92,146.84,17.0246]
[1728328151863,6.8073,146.91,146.85,1.36179578]
[1728328152026,6.8073,146.91,146.87,6.8087]
[1728328152234,16.378,146.92,146.89,6.8073]
[1728328152451,16.378,146.92,146.88,17.0202]
[1728328152732,16.378,146.92,146.9,6.807]
[1728328155234,6.8046,146.96,146.92,6.8062]
[1728328155828,15.6795,146.97,146.88,1.36115467]
[1728328156031,15.6795,146.97,146.95,6.8046]
[1728328156247,15.6795,146.97,146.94,17.0137]
[1728328156455,6.9033,146.99,146.95,6.8049]
[1728328156648,6.804,146.98,146.94,17.0137]
[1728328157152,0.1,146.99,146.94,17.0137]
[1728328157342,6.8036,146.98,146.94,17.0137]
[1728328159163,0.1,146.99,146.96,17.0108]
[1728328159334,0.1,146.99,146.98,6.8036]
[1728328159538,0.1,146.99,146.97,6.8036]
[1728328160454,0.1,146.99,146.96,23.8152]
[1728328160637,0.1,146.99,146.96,17.0108]
[1728328161255,0.1,146.99,146.88,43.776884]
[1728328161461,6.8045,146.97,146.92,6.806]
[1728328161663,0.1,146.99,146.92,6.806]
[1728328161664,6.8047,146.96,146.92,6.806]
[1728328162153,17.0095,146.98,146.9,17.0175]
[1728328162333,6.805,146.95,146.91,6.8065]
[1728328162730,17.0095,146.98,146.9,17.0175]
[1728328162958,6.8056,146.94,146.9,23.8247]
[1728328163166,23.776884,146.97,146.9,17.0175]
[1728328163340,6.8051,146.95,146.91,6.8068]
[1728328163538,17.0095,146.98,146.87,17.0211]
[1728328163539,23.776884,146.97,146.87,17.0211]
[1728328163737,6.8064,146.92,146.88,6.8082]
[1728328167935,6.8068,146.91,146.87,17.0211]
[1728328168641,6.8068,146.91,146.87,23.8297]
[1728328170663,6.8074,146.9,146.87,17.0211]
[1728328170874,23.776884,146.95,146.87,17.0211]
[1728328171161,6.8074,146.9,146.86,6.809]
[1728328172566,6.8063,146.93,146.88,6.8079]
[1728328172860,21.944,146.97,146.89,1.36148615]
[1728328173064,21.944,146.97,146.86,20.0]
[1728328173267,6.8063,146.93,146.89,6.8076]
[1728328173570,6.8065,146.92,146.88,6.8082]
[1728328174250,6.807,146.91,146.87,23.8298]
[1728328174660,17.0139,146.94,146.84,17.0246]
[1728328174962,6.8083,146.88,146.84,23.8345]
[1728328175141,6.8078,146.89,146.85,6.8093]
[1728328176863,6.8046,146.96,146.92,6.8064]
[1728328177067,29.8018,146.97,146.93,6.8058]
[1728328177363,22.9976,146.97,146.94,8.16642438]
[1728328177570,29.8017,146.97,146.93,6.8059]
[1728328177742,6.8046,146.96,146.92,17.0155]
[1728328177947,29.8018,146.97,146.92,23.8218]
[1728328178265,16.4165,146.97,146.94,6.8053]
[1728328179044,16.4165,146.97,146.95,6.805]
[1728328179268,6.9035,146.99,146.95,6.8047]
[1728328179482,0.1,146.99,146.96,6.8045]
[1728328179655,0.1,146.99,146.94,17.0131]
[1728328179970,6.9033,146.99,146.94,23.8182]
[1728328180151,6.8036,146.98,146.94,23.8182]
[1728328180465,6.8041,146.97,146.92,6.8063]
[1728328180646,6.8046,146.96,146.92,6.8063]
[1728328180852,0.1,146.99,146.92,6.8063]
[1728328181172,6.8042,146.97,146.92,6.8063]
[1728328182561,6.8041,146.97,146.93,6.8058]
[1728328183850,0.1,146.99,146.98,6.8036]
[1728328184052,0.1,146.99,146.98,28.1639011]
[1728328184874,0.1,146.99,146.98,51.9407851]
[1728328186755,0.1,146.99,146.98,28.1639011]
[1728328187055,0.1,146.99,146.98,26.8036]
[1728328190465,0.1,146.99,146.98,6.8036]
[1728328190964,0.1,146.99,146.98,8.16403353]
[1728328192475,0.1,146.99,146.98,6.8036]
[1728328194259,0.1,146.99,146.98,8.16398723]
[1728328194865,0.1,146.99,146.98,6.8036]
[1728328195782,0.1,146.99,146.98,8.1640474]
[1728328195990,0.1,146.99,146.98,6.8036]
[1728328199476,0.1,146.99,146.98,8.16394844]
[1728328199671,0.1,146.99,146.98,6.8036]
[1728328200266,0.1,146.99,146.97,17.0096]
[1728328200471,0.1,146.99,146.98,6.8036]
[1728328201788,0.1,146.99,146.98,8.16400339]
[1728328202162,0.1,146.99,146.98,6.8036]
[1728328202770,0.1,146.99,146.97,23.8135]
[1728328203178,0.1,146.99,146.98,8.16421317]
[1728328203381,0.1,146.99,146.98,28.16421317]
[1728328203864,0.1,146.99,146.98,51.94109717]
[1728328204692,0.1,146.99,146.98,50.580484]
[1728328205590,0.1,146.99,146.98,26.8036]
[1728328206390,0.1,146.99,146.98,51.94064418]
[1728328206988,0.8236266,147.04,147.03,26.8013]
[1728328207197,0.8236266,147.04,147.03,47.64652887]
[1728328207491,0.8236266,147.04,147.03,71.42341287]
[1728328207899,0.8236266,147.04,147.03,70.06364961]
[1728328208273,0.8236266,147.04,147.03,47.6464211]
[1728328208485,0.8236266,147.04,147.03,46.28676561]
[1728328208674,0.8236266,147.04,147.03,26.8013]
[1728328210290,0.8236266,147.04,147.03,28.16112921]
[1728328210475,0.8236266,147.04,147.03,51.93801321]
[1728328210672,0.1,147.09,147.03,45.13671321]
[1728328210888,0.1,147.09,147.08,6.799]
[1728328211396,0.1,147.09,147.07,16.9981]
[1728328211397,0.1,147.09,147.07,23.7972]
[1728328211700,0.1,147.09,147.04,37.0014]
[1728328211879,0.1,147.09,147.06,6.7995]
[1728328212198,0.1,147.09,147.05,6.7999]
[1728328212492,0.1,147.09,147.04,37.0014]
[1728328212493,22.6546,147.07,147.04,17.0014]
[1728328212697,22.6546,147.07,147.04,23.8021]
[1728328212894,22.6546,147.07,147.04,17.0014]
[1728328213195,22.6546,147.07,147.06,6.7999]
[1728328213391,16.0587,147.07,147.06,6.7999]
[1728328213897,0.1,147.09,147.08,6.799]
[1728328214105,0.1,147.09,147.08,8.15855093]
[1728328214994,0.1,147.09,147.08,6.799]
[1728328215508,0.1,147.09,147.08,28.1582485]
[1728328215981,0.1,147.09,147.08,26.799]
[1728328217092,0.1,147.09,147.08,28.15845709]
[1728328217398,0.1,147.09,147.08,26.799]
[1728328217706,0.1,147.09,147.08,6.799]
[1728328217877,0.1,147.09,147.08,26.799]
[1728328218377,0.1,147.09,147.08,6.799]
[1728328218588,0.1,147.09,147.07,23.7979]
[1728328218797,0.1,147.09,147.08,6.799]
[1728328218996,0.1,147.09,147.07,16.9986]
[1728328219187,22.3734,147.08,147.04,17.0014]
[1728328219389,22.3734,147.08,147.05,1.35995771]
[1728328219704,22.3734,147.08,147.01,19.48546561]
[1728328220096,22.3734,147.08,147.05,6.8001]
[1728328220582,22.3734,147.08,147.04,6.8007]
[1728328220987,22.3734,147.08,147.06,6.7995]
[1728328221200,22.3734,147.08,147.06,1.35995121]
[1728328221389,22.3734,147.08,147.05,23.8005]
[1728328221592,29.1725,147.08,147.04,6.8007]
[1728328222105,23.776884,147.07,147.01,6.8022]
[1728328222404,23.776884,147.07,147.02,6.8017]
[1728328222584,6.7999,147.06,147.02,6.8017]
[1728328222787,29.1724,147.08,147.03,1.36020108]
[1728328223090,29.1724,147.08,147.07,6.7994]
[1728328223091,22.3734,147.08,147.07,6.7994]
[1728328223991,22.3734,147.08,147.05,17.0006]
[1728328224303,22.3734,147.08,147.03,1.35977319]
[1728328224304,22.3734,147.08,147.03,20.0]
[1728328224503,22.3734,147.08,147.04,8.16029541]
[1728328224802,22.3734,147.08,147.05,6.8004]
[1728328224981,22.3734,147.08,147.04,17.0013]
[1728328225188,22.3734,147.08,147.05,6.8002]
[1728328225503,23.776884,147.07,146.94,37.28630363]
[1728328225800,6.8,147.06,147.02,6.8017]
[1728328225995,6.8007,147.05,147.0,23.8087]
[1728328226192,6.8008,147.04,147.0,23.8087]
[1728328226514,23.776884,147.07,146.97,17.0095]
[1728328226515,15.2703,147.02,146.97,17.0095]
[1728328226716,13.3739,147.01,146.97,17.0095]
[1728328227016,13.3739,147.01,146.96,6.8042]
[1728328227017,6.8027,147.0,146.96,6.8042]
[1728328227200,6.8036,146.98,146.94,17.0129]
[1728328227513,6.8032,146.99,146.94,23.8181]
[1728328227697,6.8029,147.0,146.95,6.8046]
[1728328228695,6.8032,146.99,146.95,6.8048]
[1728328228902,30.579684,147.0,146.95,6.8048]
[1728328229098,6.8032,146.99,146.94,23.8183]
[1728328229298,6.8031,146.99,146.94,23.818]
[1728328229813,6.5714,147.01,146.98,6.8036]
[1728328230119,6.5714,147.01,146.97,1.36065584]
[1728328230420,6.5714,147.01,146.97,6.804]
[1728328230893,13.3737,147.01,146.97,6.804]
[1728328231094,6.5714,147.01,146.97,6.804]
[1728328231296,23.776884,147.0,146.95,6.8049]
[1728328231501,23.776884,147.0,146.93,17.0143]
[1728328231819,6.8031,147.0,146.96,6.8044]
[1728328232312,23.776884,147.0,146.95,23.8169]
[1728328232517,6.8035,146.99,146.95,17.012]
[1728328232724,6.8036,146.98,146.95,17.012]
[1728328233017,6.8032,146.99,146.95,17.012]
[1728328233194,23.776884,147.0,146.95,17.012]
[1728328233396,23.776884,147.0,146.93,6.8058]
[1728328233917,6.8035,146.99,146.94,8.16640664]
[1728328234093,6.5714,147.01,146.97,6.804]
[1728328234618,6.5714,147.01,146.93,31.11410363]
[1728328235005,13.3737,147.01,146.96,6.8042]
[1728328235318,13.3737,147.01,146.97,1.36072648]
[1728328235613,13.3736,147.01,146.93,31.11410363]
[1728328235796,13.3736,147.01,146.97,23.8136]
[1728328236005,6.5714,147.01,146.97,17.0096]
[1728328236204,6.5714,147.01,146.97,23.8135]
[1728328236796,6.5714,147.01,146.98,8.1642148]
[1728328237106,6.5714,147.01,146.98,6.8036]
[1728328237504,6.5714,147.01,146.97,17.0096]
[1728328237703,13.3737,147.01,146.97,17.0096]
[1728328238101,13.3737,147.01,146.97,23.8136]
[1728328238295,13.3737,147.01,146.97,17.0096]
[1728328239301,6.5714,147.01,146.97,18.37030816]
[1728328239519,6.5714,147.01,146.97,17.0096]
[1728328239718,6.5714,147.01,146.98,6.8035]
[1728328240220,6.5714,147.01,146.97,17.0096]
[1728328240415,13.3736,147.01,146.97,23.8135]
[1728328240834,6.803,147.0,146.96,6.8044]
[1728328241128,6.8041,146.97,146.94,18.3737425]
[1728328241313,6.8035,146.99,146.94,8.16602055]
[1728328241494,23.776884,147.0,146.93,17.0145]
[1728328241699,6.8037,146.98,146.94,8.16636529]
[1728328241901,6.8032,146.99,146.95,6.8046]
[1728328242318,30.579584,147.0,146.96,8.16531694]
[1728328242521,23.776884,147.0,146.96,6.8045]
[1728328242828,13.3739,147.01,146.95,17.0122]
[1728328243025,6.8027,147.0,146.96,6.8044]
[1728328243324,6.8031,146.99,146.95,23.817]
[1728328243727,6.8037,146.98,146.95,17.0122]
[1728328243896,6.8037,146.98,146.94,6.8053]
[1728328244231,6.8032,146.99,146.95,6.805]
[1728328244408,23.776884,147.0,146.93,1.36092446]
[1728328244614,6.8041,146.97,146.93,8.16652446]
[1728328244824,6.8036,146.98,146.94,6.8054]
[1728328245422,6.5714,147.01,146.95,1.36089902]
[1728328245730,6.8037,146.98,146.94,6.8054]
[1728328245925,23.776884,147.0,146.89,19.46574458]
[1728328245926,15.4063,146.95,146.93,17.0144]
[1728328246417,15.4063,146.95,146.9,17.0179]
[1728328246910,15.4063,146.95,146.92,6.8063]
[1728328247344,15.4063,146.95,146.9,17.0179]
[1728328247345,28.3202,146.95,146.91,6.8068]
[1728328247700,21.5149,146.95,146.9,18.37916012]
[1728328247900,21.5149,146.95,146.92,6.806]
[1728328248301,28.3202,146.95,146.91,6.8067]
[1728328248738,28.3202,146.95,146.91,8.16790236]
[1728328249033,21.5149,146.95,146.91,8.16790236]
[1728328249610,21.5149,146.95,146.92,6.8062]
[1728328250222,21.5149,146.95,146.93,6.8057]
[1728328251228,21.5149,146.95,146.92,23.8215]
[1728328252866,21.5149,146.95,146.93,6.8058]
[1728328253136,21.5149,146.95,146.92,17.0154]
[1728328253718,28.3199,146.95,146.92,17.0154]
[1728328254839,21.5149,146.95,146.92,17.0154]
[1728328255211,21.5149,146.95,146.93,6.8058]
[1728328257428,21.5149,146.95,146.94,6.8054]
[1728328257730,86.82242235,147.08,146.93,1.36110118]
[1728328257731,21.2194,146.99,146.97,6.8038]
[1728328259229,15.2168,146.99,146.98,6.8036]
[1728328259431,6.0026,147.03,147.0,6.8025]
[1728328259432,15.2168,147.02,147.0,6.8025]
[1728328259647,15.2168,147.02,147.01,6.8022]
[1728328259932,0.1,147.09,147.06,6.7995]
[1728328260134,0.1,147.09,147.07,6.7994]
[1728328260315,0.1,147.09,147.05,17.0008]
[1728328260521,6.799,147.08,147.04,6.8004]
[1728328261718,0.1,147.09,147.04,6.8004]
[1728328261719,6.8986,147.09,147.04,6.8004]
[1728328262231,0.1,147.09,147.08,6.799]
[1728328262847,0.1,147.09,147.07,6.7993]
[1728328263033,0.1,147.09,147.06,23.799]
[1728328263208,0.1,147.09,147.06,23.7991]
[1728328263542,0.1,147.09,147.08,6.799]
[1728328263714,0.1,147.09,147.08,26.799]
[1728328265250,0.1,147.09,147.08,50.575884]
[1728328266247,0.1,147.09,147.08,26.799]
[1728328267449,0.1,147.09,147.08,51.93506752]
[1728328267756,15.1709,147.18,147.16,6.7953]
[1728328268340,15.1709,147.18,147.15,23.785]
[1728328268734,15.1709,147.18,147.16,8.15421426]
[1728328269143,15.1709,147.18,147.16,6.7952]
[1728328269364,15.1709,147.18,147.15,16.9893]
[1728328269646,15.1709,147.18,147.15,25.14402326]
[1728328269857,21.9653,147.18,147.12,18.35140425]
[1728328270146,6.7958,147.15,147.09,16.9959]
[1728328270450,23.776884,147.17,147.09,16.9959]
[1728328270451,6.7968,147.13,147.09,16.9959]
[1728328270628,6.7962,147.14,147.09,23.7944]
[1728328271935,23.776884,147.13,147.06,16.9995]
[1728328272138,6.798,147.11,147.06,23.799]